bitfinex-derivatives/quotes_SOLF0:USTF0_20250428
["timestamp","ask_amount","ask_price","bid_price","bid_amount"]
[1745814360901,28.61649444,149.34,149.3,4.57649444]
[1745814361203,6.6951,149.32,149.3,4.57649444]
[1745814361501,28.61649444,149.34,149.3,4.57649444]
[1745814361702,28.61649444,149.34,149.29,4.57649444]
[1745814362001,6.6951,149.32,149.29,4.57649444]
[1745814362497,4.57649444,149.32,149.28,4.57649444]
[1745814363002,6.6954,149.31,149.28,4.57649444]
[1745814363200,6.6954,149.31,149.29,4.57649444]
[1745814363603,6.6951,149.32,149.29,4.57649444]
[1745814363803,24.04,149.34,149.3,4.57649444]
[1745814364403,4.57649444,149.33,149.28,11.27289444]
[1745814365305,6.6951,149.32,149.28,11.27289444]
[1745814365603,4.57649444,149.33,149.29,11.27259444]
[1745814365808,11.27099444,149.33,149.29,4.57649444]
[1745814366407,11.27099444,149.33,149.29,11.27239444]
[1745814368709,4.57649444,149.32,149.28,4.57649444]
[1745814368905,4.57649444,149.31,149.27,28.61649444]
[1745814369207,4.57649444,149.32,149.28,4.57649444]
[1745814369404,11.27149444,149.32,149.28,11.27279444]
[1745814369708,4.57649444,149.33,149.29,4.57649444]
[1745814370404,11.27119444,149.33,149.29,11.27269444]
[1745814371706,6.6948,149.32,149.29,6.6962]
[1745814371908,4.57649444,149.33,149.3,6.6956]
[1745814372110,4.57649444,149.33,149.28,4.57649444]
[1745814372608,24.04,149.34,149.28,4.57649444]
[1745814372808,4.57649444,149.33,149.28,4.57649444]
[1745814373309,6.6949,149.32,149.29,6.696]
[1745814373707,4.57649444,149.32,149.27,28.61649444]
[1745814374008,11.27209444,149.31,149.27,35.31319444]
[1745814374208,11.27209444,149.31,149.27,28.61649444]
[1745814374400,11.27149444,149.32,149.28,4.57649444]
[1745814374811,11.27149444,149.32,149.28,11.27299444]
[1745814375009,6.6953,149.31,149.28,11.27299444]
[1745814375510,11.27149444,149.32,149.28,11.27299444]
[1745814376613,4.57649444,149.31,149.27,24.04]
[1745814376813,4.57649444,149.28,149.23,2.0621]
[1745814377013,4.57649444,149.27,149.23,26.0821]
[1745814377209,4.57649444,149.26,149.23,26.0821]
[1745814377415,4.57649444,149.26,149.23,30.7187]
[1745814377610,24.02,149.3,149.23,24.02]
[1745814377611,4.57649444,149.25,149.23,24.02]
[1745814377814,4.57649444,149.24,149.2,32.67509444]
[1745814378113,4.57649444,149.24,149.21,6.6996]
[1745814378515,11.27499444,149.24,149.21,6.6996]
[1745814378717,4.57649444,149.24,149.2,35.29659444]
[1745814378910,5.8252,149.29,149.2,28.59649444]
[1745814379111,11.27479444,149.25,149.22,6.6993]
[1745814379316,11.27479444,149.25,149.21,4.57649444]
[1745814379613,6.6977,149.26,149.22,4.57649444]
[1745814379809,6.6977,149.26,149.23,4.57649444]
[1745814380014,28.59649444,149.3,149.25,4.57649444]
[1745814380313,28.59649444,149.3,149.26,4.57649444]
[1745814381317,6.6962,149.29,149.26,11.27389444]
[1745814382216,30.7159,149.3,149.27,11.27319444]
[1745814382510,4.57649444,149.32,149.27,4.57649444]
[1745814382714,6.6956,149.31,149.28,6.6966]
[1745814382920,4.57649444,149.31,149.27,4.57649444]
[1745814383116,4.57649444,149.31,149.26,4.57649444]
[1745814383819,6.696,149.3,149.26,11.27369444]
[1745814384014,6.696,149.3,149.26,4.57649444]
[1745814385314,6.696,149.3,149.27,6.6971]
[1745814386121,11.27189444,149.31,149.27,6.6971]
[1745814387721,6.6954,149.31,149.27,11.27359444]
[1745814388220,6.6954,149.31,149.27,6.6971]
[1745814388923,6.6958,149.3,149.27,6.6971]
[1745814389323,6.6958,149.3,149.26,11.27389444]
[1745814390523,11.27199444,149.31,149.27,6.697]
[1745814392119,11.27199444,149.31,149.28,6.6966]
[1745814392524,11.27199444,149.31,149.26,4.57649444]
[1745814392829,11.27199444,149.31,149.27,6.6969]
[1745814393019,6.6949,149.32,149.26,4.57649444]
[1745814393216,6.6949,149.32,149.28,4.57649444]
[1745814393421,28.59649444,149.33,149.28,4.57649444]
[1745814393618,4.57649444,149.3,149.26,4.57649444]
[1745814394027,4.57649444,149.3,149.27,6.6967]
[1745814394230,4.57649444,149.3,149.25,6.61249444]
[1745814395328,11.27259444,149.3,149.25,6.61249444]
[1745814395728,11.27259444,149.3,149.26,6.6972]
[1745814397329,6.6963,149.29,149.26,6.6972]
[1745814402137,11.27279444,149.29,149.26,6.6972]
[1745814402634,4.57649444,149.27,149.24,24.02]
[1745814402936,4.57649444,149.26,149.22,4.57649444]
[1745814403133,11.27439444,149.26,149.23,6.6987]
[1745814403328,11.27439444,149.26,149.22,4.57649444]
[1745814403526,4.57649444,149.26,149.22,4.57649444]
[1745814404237,6.6981,149.25,149.22,6.699]
[1745814404433,6.6981,149.25,149.21,34.74059444]
[1745814404736,11.27459444,149.25,149.21,28.59649444]
[1745814404931,11.27459444,149.25,149.21,35.29599444]
[1745814405132,6.6984,149.24,149.21,35.29599444]
[1745814405333,4.57649444,149.25,149.21,35.29599444]
[1745814405528,4.57649444,149.25,149.16,5.9537]
[1745814405529,4.57649444,149.23,149.16,13.88165811]
[1745814405835,4.57649444,149.23,149.18,4.57649444]
[1745814406038,4.57649444,149.24,149.2,11.27649444]
[1745814406339,6.6986,149.24,149.21,4.57649444]
[1745814406937,6.6986,149.24,149.2,6.7]
[1745814407136,6.6986,149.24,149.2,11.27649444]
[1745814407534,28.59649444,149.25,149.2,11.27649444]
[1745814407736,24.02,149.25,149.21,4.57649444]
[1745814407935,24.02,149.25,149.22,4.57649444]
[1745814408938,24.02,149.25,149.22,6.6992]
[1745814409839,35.29469444,149.25,149.22,6.6992]
[1745814410140,35.29469444,149.25,149.2,4.57649444]
[1745814410340,35.29469444,149.25,149.21,6.6995]
[1745814410839,35.29469444,149.25,149.22,6.6993]
[1745814411034,24.02,149.25,149.22,6.6993]
[1745814412141,30.718,149.25,149.22,6.6993]
[1745814412843,30.718,149.25,149.21,11.27609444]
[1745814413042,30.718,149.25,149.21,6.6996]
[1745814413537,6.6985,149.24,149.21,6.6996]
[1745814413737,28.59649444,149.25,149.2,11.27659444]
[1745814414142,4.57649444,149.24,149.2,11.27659444]
[1745814415143,6.6989,149.23,149.2,4.57649444]
[1745814415443,6.6989,149.23,149.19,6.7006]
[1745814415444,4.57649444,149.22,149.19,6.7006]
[1745814415640,4.57649444,149.22,149.18,4.57649444]
[1745814416643,11.27589444,149.22,149.18,11.27729444]
[1745814417646,6.6994,149.22,149.19,6.7005]
[1745814417944,4.57649444,149.23,149.19,6.7005]
[1745814418447,6.6996,149.22,149.19,6.7005]
[1745814418843,6.6996,149.22,149.19,11.27699444]
[1745814419544,11.27609444,149.22,149.18,11.27739444]
[1745814420044,11.27609444,149.22,149.18,4.57649444]
[1745814420346,6.6996,149.22,149.19,4.57649444]
[1745814420742,4.57649444,149.23,149.19,4.57649444]
[1745814420942,11.27549444,149.23,149.19,11.27679444]
[1745814421245,6.699,149.23,149.19,11.27679444]
[1745814421945,6.6986,149.24,149.2,4.57649444]
[1745814422142,24.04,149.25,149.16,29.9737]
[1745814422445,24.04,149.25,149.22,4.57649444]
[1745814422639,6.6987,149.24,149.22,4.57649444]
[1745814423646,30.7381,149.25,149.22,4.57649444]
[1745814424246,13.3844,149.38,149.24,4.57649444]
[1745814424437,24.04,149.29,149.27,4.57649444]
[1745814424636,24.04,149.29,149.28,4.57649444]
[1745814425145,28.61649444,149.31,149.22,4.1384]
[1745814425338,6.6962,149.29,149.25,11.27419444]
[1745814425540,6.6962,149.29,149.25,4.57649444]
[1745814426250,11.27239444,149.3,149.26,6.6972]
[1745814426445,11.27239444,149.3,149.26,11.27369444]
[1745814426950,6.6959,149.3,149.26,11.27369444]
[1745814427248,35.31199444,149.31,149.27,4.57649444]
[1745814427448,30.7355,149.31,149.27,4.57649444]
[1745814427646,35.31199444,149.31,149.27,4.57649444]
[1745814427949,35.31199444,149.31,149.27,11.27329444]
[1745814428249,4.57649444,149.29,149.25,4.57649444]
[1745814428646,11.27239444,149.3,149.25,4.57649444]
[1745814429346,11.27239444,149.3,149.26,6.6972]
[1745814430147,11.27239444,149.3,149.26,11.27369444]
[1745814430646,24.04,149.31,149.29,4.57649444]
[1745814430947,28.59649444,149.34,149.3,4.57649444]
[1745814431149,25.9465,149.37,149.22,4.1384]
[1745814431349,24.02,149.37,149.33,4.57649444]
[1745814431545,3.9649,149.39,149.34,4.57649444]
[1745814431747,28.59649444,149.39,149.29,24.02]
[1745814431946,4.57649444,149.38,149.34,4.57649444]
[1745814432147,28.59649444,149.39,149.34,4.57649444]
[1745814432348,35.28849444,149.39,149.35,11.26959444]
[1745814433152,24.02,149.39,149.35,11.26959444]
[1745814433353,24.02,149.39,149.36,11.26949444]
[1745814433844,24.02,149.39,149.36,6.693]
[1745814434041,24.02,149.39,149.36,11.26949444]
[1745814434247,5.9572,149.44,149.38,4.57649444]
[1745814434442,4.57649444,149.43,149.38,4.57649444]
[1745814434643,4.57649444,149.41,149.37,4.57649444]
[1745814434954,4.57649444,149.39,149.35,4.57649444]
[1745814435157,4.57649444,149.38,149.33,24.02]
[1745814435452,4.57649444,149.38,149.34,4.57649444]
[1745814435653,4.57649444,149.36,149.3,512.1699]
[1745814436155,4.57649444,149.36,149.32,4.57649444]
[1745814436956,4.57649444,149.36,149.31,4.57649444]
[1745814437255,4.57649444,149.35,149.3,34.54639444]
[1745814437447,11.27029444,149.35,149.3,39.29679444]
[1745814437849,4.57649444,149.35,149.3,28.59649444]
[1745814438046,4.57649444,149.34,149.3,24.02]
[1745814438246,4.57649444,149.33,149.3,24.02]
[1745814438550,4.57649444,149.32,149.28,4.57649444]
[1745814438747,4.57649444,149.32,149.28,11.27299444]
[1745814438960,6.6945,149.33,149.29,4.57649444]
[1745814439258,6.6945,149.33,149.3,4.57649444]
[1745814439450,24.02,149.34,149.28,7.14052278]
[1745814440056,30.7142,149.34,149.3,6.6953]
[1745814440256,24.02,149.34,149.28,7.14052278]
[1745814440646,37.32792278,149.37,149.28,7.14052278]
[1745814440856,6.6938,149.35,149.28,7.14052278]
[1745814441656,6.6938,149.35,149.3,6.6954]
[1745814443152,6.6938,149.35,149.28,7.14052278]
[1745814443357,6.6931,149.36,149.28,7.14052278]
[1745814443659,6.6931,149.36,149.3,7.14052278]
[1745814444056,6.6931,149.36,149.32,6.6945]
[1745814444657,6.6935,149.35,149.31,6.6952]
[1745814444861,35.34192278,149.37,149.28,7.14052278]
[1745814445257,6.6943,149.34,149.29,6.6958]
[1745814446256,6.6943,149.34,149.3,6.6957]
[1745814446558,6.6945,149.33,149.28,7.14052278]
[1745814447358,6.6945,149.33,149.29,6.6959]
[1745814451060,35.34192278,149.37,149.28,7.14052278]
[1745814451258,28.2014,149.37,149.3,7.14052278]
[1745814451458,24.14,149.37,149.3,7.14052278]
[1745814451660,30.8327,149.37,149.33,6.694]
[1745814452859,6.6931,149.36,149.33,6.694]
[1745814453160,24.14,149.37,149.33,6.694]
[1745814453357,6.6922,149.38,149.34,6.6936]
[1745814453665,24.14,149.4,149.31,31.28052278]
[1745814453959,7.14052278,149.39,149.31,31.28052278]
[1745814454359,7.14052278,149.39,149.31,24.14]
[1745814454561,6.6938,149.35,149.31,30.8352]
[1745814454859,7.14052278,149.37,149.31,24.14]
[1745814455051,7.14052278,149.37,149.27,7.14052278]
[1745814455052,6.6941,149.34,149.3,6.6954]
[1745814455563,6.6941,149.34,149.28,24.14]
[1745814457164,6.6937,149.35,149.28,24.14]
[1745814457364,24.14,149.36,149.29,7.14052278]
[1745814457565,30.8333,149.36,149.33,6.6944]
[1745814457966,30.8333,149.36,149.29,7.14052278]
[1745814458267,30.8333,149.36,149.32,6.6947]
[1745814459468,35.40270101,149.36,149.32,6.6947]
[1745814459669,35.40270101,149.36,149.33,6.6943]
[1745814462362,35.40270101,149.36,149.32,6.6946]
[1745814462564,24.14,149.36,149.32,4.56940101]
[1745814462764,11.26210101,149.37,149.32,4.56940101]
[1745814463169,4.56940101,149.37,149.34,6.6936]
[1745814463567,11.26170101,149.38,149.34,11.26300101]
[1745814464575,11.26170101,149.38,149.35,6.6933]
[1745814464969,6.6923,149.38,149.35,6.6933]
[1745814465164,4.1346,149.41,149.26,2.0344]
[1745814465165,4.1346,149.41,149.36,4.56940101]
[1745814465472,8.70400101,149.41,149.36,4.56940101]
[1745814465670,15.39510101,149.41,149.37,11.26160101]
[1745814465967,10.8257,149.41,149.37,11.26160101]
[1745814466164,15.39510101,149.41,149.37,6.6922]
[1745814466376,15.39510101,149.41,149.37,6.65832269]
[1745814467169,6.6914,149.4,149.37,6.65832269]
[1745814469370,28.70940101,149.42,149.37,4.56940101]
[1745814469976,4.56940101,149.41,149.38,6.692]
[1745814470468,4.56940101,149.41,149.39,6.6916]
[1745814470674,4.56940101,149.42,149.38,4.56940101]
[1745814470970,4.56940101,149.44,149.43,6.6899]
[1745814471170,28.60940101,149.45,149.41,4.56940101]
[1745814471472,4.56940101,149.43,149.39,4.56940101]
[1745814471671,4.56940101,149.43,149.37,4.0331]
[1745814471873,4.56940101,149.43,149.4,6.691]
[1745814472074,4.56940101,149.42,149.39,4.56940101]
[1745814472274,4.56940101,149.42,149.39,6.6914]
[1745814472678,4.56940101,149.42,149.38,4.56940101]
[1745814472868,4.56940101,149.42,149.39,6.6916]
[1745814473478,4.56940101,149.42,149.39,11.26100101]
[1745814473678,11.25930101,149.43,149.39,11.26100101]
[1745814474375,4.56940101,149.43,149.4,6.6911]
[1745814476077,4.56940101,149.42,149.38,4.56940101]
[1745814476283,4.56940101,149.41,149.37,4.56940101]
[1745814476582,4.56940101,149.4,149.37,6.6923]
[1745814478085,4.56940101,149.4,149.38,6.692]
[1745814479183,4.56940101,149.4,149.37,11.26170101]
[1745814479388,5.9712,149.44,149.38,4.56940101]
[1745814479681,4.56940101,149.42,149.38,4.56940101]
[1745814480483,4.56940101,149.42,149.37,4.56940101]
[1745814480682,4.56940101,149.41,149.36,4.56940101]
[1745814481084,4.56940101,149.42,149.37,4.56940101]
[1745814481385,11.25940101,149.43,149.4,6.691]
[1745814482086,4.0014,149.44,149.4,6.691]
[1745814482087,6.6896,149.44,149.41,6.6907]
[1745814482283,4.56940101,149.44,149.41,6.6907]
[1745814483085,4.56940101,149.43,149.41,6.6907]
[1745814483584,28.60940101,149.45,149.41,4.56940101]
[1745814483786,6.6884,149.47,149.42,4.56940101]
[1745814483987,4.56940101,149.45,149.41,4.56940101]
[1745814484183,4.56940101,149.44,149.4,4.56940101]
[1745814484389,27.9008,149.48,149.41,4.56940101]
[1745814484688,4.56940101,149.44,149.41,6.6906]
[1745814484988,4.56940101,149.43,149.39,4.56940101]
[1745814485590,4.56940101,149.42,149.38,28.60940101]
[1745814485790,4.56940101,149.45,149.4,4.56940101]
[1745814486094,4.56940101,149.43,149.33,367.1365]
[1745814486291,4.56940101,149.39,149.35,4.56940101]
[1745814486591,4.56940101,149.39,149.36,6.693]
[1745814486793,4.56940101,149.4,149.36,4.56940101]
[1745814487292,11.26070101,149.4,149.36,11.26230101]
[1745814487894,6.6918,149.39,149.36,11.26230101]
[1745814488097,4.56940101,149.39,149.35,6.6933]
[1745814488292,4.56940101,149.37,149.32,4.56940101]
[1745814488493,11.26280101,149.36,149.31,36.53735912]
[1745814488692,4.56940101,149.35,149.32,6.6945]
[1745814489196,4.56940101,149.36,149.32,6.6945]
[1745814489598,11.26260101,149.36,149.32,6.6945]
[1745814489992,11.26260101,149.36,149.33,6.6942]
[1745814489993,4.56940101,149.36,149.33,6.6942]
[1745814490188,11.26170101,149.38,149.33,4.56940101]
[1745814490799,11.26170101,149.38,149.34,4.56940101]
[1745814491096,4.56940101,149.37,149.33,4.56940101]
[1745814491297,4.56940101,149.37,149.34,6.6938]
[1745814491595,4.56940101,149.36,149.32,4.56940101]
[1745814492097,4.56940101,149.36,149.33,6.6941]
[1745814492498,11.26250101,149.36,149.33,6.6941]
[1745814492800,4.56940101,149.36,149.33,6.6941]
[1745814493098,4.56940101,149.36,149.34,6.6939]
[1745814493397,4.56940101,149.36,149.33,6.6943]
[1745814493598,4.56940101,149.36,149.32,4.56940101]
[1745814493996,4.56940101,149.36,149.33,6.6941]
[1745814494800,6.693,149.36,149.33,6.6941]
[1745814495000,4.56940101,149.37,149.33,6.6941]
[1745814495198,4.56940101,149.36,149.33,6.6941]
[1745814495393,6.6936,149.35,149.32,6.6948]
[1745814495599,4.56940101,149.36,149.32,6.6948]
[1745814496003,11.26250101,149.36,149.33,6.6943]
[1745814496500,4.56940101,149.37,149.34,6.6938]
[1745814496700,4.56940101,149.37,149.33,4.56940101]
[1745814496900,4.56940101,149.36,149.31,28.60940101]
[1745814497102,4.56940101,149.34,149.32,6.6948]
[1745814497698,4.56940101,149.34,149.31,30.7351]
[1745814497903,4.56940101,149.34,149.3,4.56940101]
[1745814498104,24.04,149.39,149.3,4.56940101]
[1745814498304,4.56940101,149.35,149.33,6.6944]
[1745814498603,6.6931,149.36,149.31,4.56940101]
[1745814498801,4.56940101,149.36,149.32,4.56940101]
[1745814499002,4.56940101,149.36,149.33,6.6941]
[1745814499505,11.26250101,149.36,149.33,6.6941]
[1745814499804,6.6931,149.36,149.33,6.6941]
[1745814500005,11.26250101,149.36,149.33,6.6941]
[1745814500804,11.26250101,149.36,149.32,11.26410101]
[1745814501109,11.26250101,149.36,149.32,4.56940101]
[1745814501303,4.56940101,149.36,149.34,6.6939]
[1745814501602,4.56940101,149.38,149.34,4.56940101]
[1745814501799,28.60940101,149.39,149.35,4.56940101]
[1745814502205,35.30140101,149.39,149.36,6.693]
[1745814502508,35.30140101,149.39,149.35,4.56940101]
[1745814502805,35.30140101,149.39,149.35,11.26260101]
[1745814503711,35.30140101,149.39,149.36,6.693]
[1745814503906,35.30140101,149.39,149.35,4.56940101]
[1745814504307,35.30140101,149.39,149.35,11.26280101]
[1745814504807,11.26170101,149.38,149.34,11.26320101]
[1745814505008,4.56940101,149.37,149.34,6.6938]
[1745814506314,11.26170101,149.38,149.35,6.6934]
[1745814506514,35.30120101,149.39,149.34,4.56940101]
[1745814506810,35.30120101,149.39,149.35,6.6932]
[1745814507606,24.04,149.39,149.36,4.56940101]
[1745814507811,28.74940101,149.42,149.38,4.56940101]
[1745814508215,35.43990101,149.42,149.38,11.26130101]
[1745814508406,6.0674,149.47,149.4,4.56940101]
[1745814508609,28.74940101,149.45,149.41,4.56940101]
[1745814508812,35.43870101,149.45,149.41,11.25980101]
[1745814509610,35.43870101,149.45,149.4,6.6911]
[1745814509611,6.6898,149.44,149.4,6.6911]
[1745814509916,24.18,149.45,149.38,7.13099073]
[1745814511112,30.8693,149.45,149.41,6.6907]
[1745814511816,24.18,149.45,149.42,6.6902]
[1745814512016,24.18,149.45,149.38,7.13099073]
[1745814512417,6.6895,149.44,149.4,6.691]
[1745814512617,24.18,149.45,149.38,7.13099073]
[1745814513314,9.09119073,149.47,149.38,11.07339073]
[1745814513510,9.09119073,149.47,149.39,2.0858]
[1745814513716,31.31099073,149.49,149.4,7.13099073]
[1745814514018,33.39919073,149.49,149.4,7.13099073]
[1745814515216,33.39919073,149.49,149.41,6.6904]
[1745814515424,7.13099073,149.47,149.39,2.0858]
[1745814516217,6.6898,149.44,149.39,2.0858]
[1745814516420,6.6898,149.44,149.4,6.6911]
[1745814517118,6.6898,149.44,149.39,8.7773]
[1745814517312,31.29099073,149.45,149.37,24.18]
[1745814517720,31.29099073,149.45,149.39,6.6914]
[1745814518019,6.6898,149.44,149.39,6.6914]
[1745814518321,6.6898,149.44,149.4,6.6912]
[1745814520117,6.6899,149.43,149.4,6.6912]
[1745814520817,30.849,149.45,149.38,7.13099073]
[1745814521423,24.16,149.45,149.42,6.6901]
[1745814522125,30.8491,149.45,149.42,6.6901]
[1745814522326,30.8491,149.45,149.41,6.6907]
[1745814522624,24.16,149.45,149.41,6.6907]
[1745814522819,30.8494,149.45,149.41,6.6907]
[1745814523021,24.16,149.45,149.41,6.6907]
[1745814523425,30.8493,149.45,149.41,6.6907]
[1745814523625,7.13099073,149.47,149.41,6.6907]
[1745814525127,24.16,149.47,149.42,6.6901]
[1745814525929,6.6888,149.46,149.42,6.6901]
[1745814527526,6.6891,149.45,149.42,6.6901]
[1745814528525,6.6887,149.46,149.42,6.6901]
[1745814531521,6.6887,149.46,149.43,11.25285843]
[1745814531726,35.41115843,149.47,149.43,11.25285843]
[1745814531920,30.8482,149.47,149.44,4.56295843]
[1745814534227,30.8482,149.47,149.43,6.6897]
[1745814534425,30.8482,149.47,149.44,4.56295843]
[1745814536027,6.6886,149.46,149.44,4.56295843]
[1745814536628,35.41125843,149.47,149.44,4.56295843]
[1745814536930,28.72295843,149.47,149.44,4.56295843]
[1745814537129,28.72295843,149.47,149.43,4.56295843]
[1745814538230,6.6887,149.46,149.43,11.25275843]
[1745814538430,6.6887,149.46,149.44,4.56295843]
[1745814541128,4.56295843,149.48,149.44,4.56295843]
[1745814541432,26.0127,149.5,149.47,4.56295843]
[1745814541627,11.24945843,149.51,149.47,11.25065843]
[1745814541826,28.66295843,149.52,149.48,4.56295843]
[1745814542223,28.66295843,149.52,149.49,6.6872]
[1745814542430,28.66295843,149.52,149.48,4.56295843]
[1745814543029,6.6863,149.51,149.48,4.56295843]
[1745814543523,28.66295843,149.52,149.48,4.56295843]
[1745814543731,6.6868,149.5,149.47,4.56295843]
[1745814544024,4.56295843,149.51,149.45,24.1]
[1745814544229,4.56295843,149.5,149.45,24.1]
[1745814544431,4.56295843,149.49,149.45,28.66295843]
[1745814544632,6.688,149.48,149.45,4.56295843]
[1745814544832,4.56295843,149.5,149.46,4.56295843]
[1745814545335,6.6876,149.49,149.47,4.56295843]
[1745814545534,4.56295843,149.51,149.47,4.56295843]
[1745814545833,6.687,149.5,149.47,4.56295843]
[1745814546034,4.56295843,149.51,149.47,4.56295843]
[1745814546238,4.56295843,149.51,149.46,4.56295843]
[1745814546836,6.6875,149.49,149.46,4.56295843]
[1745814547530,4.56295843,149.51,149.46,4.56295843]
[1745814547732,6.6877,149.48,149.46,4.56295843]
[1745814549144,6.6873,149.49,149.46,4.56295843]
[1745814549841,11.24975843,149.51,149.46,4.56295843]
[1745814550044,4.56295843,149.51,149.47,4.56295843]
[1745814550336,28.66295843,149.52,149.48,4.56295843]
[1745814550643,24.1,149.52,149.49,4.56295843]
[1745814551139,30.7862,149.52,149.48,6.6876]
[1745814551344,30.7862,149.52,149.48,11.25055843]
[1745814551543,24.1,149.52,149.48,4.56295843]
[1745814552344,30.7861,149.52,149.48,11.25055843]
[1745814552546,6.6861,149.52,149.48,11.25055843]
[1745814554445,28.66295843,149.55,149.5,4.56295843]
[1745814554642,28.66295843,149.55,149.51,4.56295843]
[1745814555543,4.56295843,149.54,149.5,4.56295843]
[1745814555745,4.56295843,149.54,149.49,4.56295843]
[1745814555941,4.56295843,149.53,149.49,4.56295843]
[1745814556144,11.24875843,149.53,149.49,11.25005843]
[1745814557247,11.24815843,149.54,149.5,6.6867]
[1745814557442,11.24815843,149.54,149.5,11.24965843]
[1745814557642,4.56295843,149.54,149.5,11.24965843]
[1745814558141,6.6854,149.53,149.5,4.56295843]
[1745814558641,6.6854,149.53,149.49,11.24995843]
[1745814558948,6.6854,149.53,149.5,6.6868]
[1745814559141,28.66295843,149.55,149.51,4.56295843]
[1745814559547,35.34775843,149.55,149.51,11.24915843]
[1745814561452,30.7848,149.55,149.52,11.24885843]
[1745814561750,30.7848,149.55,149.52,6.6859]
[1745814562049,6.685,149.54,149.51,11.24905843]
[1745814562450,28.66295843,149.55,149.51,11.24905843]
[1745814562641,35.34765843,149.55,149.51,11.24905843]
[1745814563851,6.6851,149.54,149.51,11.24905843]
[1745814564051,6.6851,149.54,149.47,6.1002]
[1745814564052,24.1,149.55,149.52,4.56295843]
[1745814564350,30.51905843,149.57,149.52,4.56295843]
[1745814564649,11.24715843,149.56,149.52,11.24855843]
[1745814568152,4.56295843,149.56,149.53,6.6853]
[1745814569048,11.24705843,149.56,149.52,11.24865843]
[1745814570847,25.9561,149.57,149.47,6.1002]
[1745814571043,4.56295843,149.51,149.46,24.04]
[1745814571248,4.56295843,149.51,149.46,4.56295843]
[1745814571447,4.56295843,149.51,149.47,11.25105843]
[1745814571851,3.9179,149.56,149.48,4.56295843]
[1745814572054,4.56295843,149.53,149.49,11.24985843]
[1745814572654,11.24805843,149.54,149.5,11.24945843]
[1745814573454,11.24805843,149.54,149.5,4.56295843]
[1745814573651,11.24845843,149.53,149.49,6.6871]
[1745814573851,11.24845843,149.53,149.48,4.56295843]
[1745814574152,4.56295843,149.53,149.48,11.25045843]
[1745814575253,6.686,149.52,149.48,11.25045843]
[1745814575452,4.56295843,149.52,149.47,6.688]
[1745814575750,11.24895843,149.52,149.47,4.56295843]
[1745814575952,11.24895843,149.52,149.48,4.56295843]
[1745814577254,11.24895843,149.52,149.47,6.6877]
[1745814577255,6.685,149.54,149.51,4.56295843]
[1745814577456,30.51905843,149.57,149.53,4.56295843]
[1745814577651,30.51905843,149.57,149.52,4.56295843]
[1745814577957,11.24715843,149.56,149.52,4.56295843]
[1745814579255,6.6842,149.56,149.53,4.56295843]
[1745814579463,24.06,149.57,149.53,4.56295843]
[1745814580857,30.7437,149.57,149.53,4.56295843]
[1745814581055,24.06,149.57,149.53,4.56295843]
[1745814581760,6.6845,149.56,149.53,4.56295843]
[1745814582057,28.62295843,149.57,149.52,4.56295843]
[1745814582457,6.6844,149.56,149.52,4.56295843]
[1745814583754,24.06,149.57,149.54,4.56295843]
[1745814584054,28.62295843,149.57,149.53,4.56295843]
[1745814584358,35.30675843,149.57,149.52,11.24855843]
[1745814584558,35.30675843,149.57,149.53,4.56295843]
[1745814584857,35.30675843,149.57,149.53,11.24805843]
[1745814585156,30.7438,149.57,149.53,11.24805843]
[1745814586860,35.30675843,149.57,149.53,11.24805843]
[1745814587065,6.6842,149.56,149.53,4.56295843]
[1745814587356,6.6842,149.56,149.54,4.56295843]
[1745814587560,6.6842,149.56,149.52,11.24875843]
[1745814588060,35.30675843,149.57,149.52,11.24875843]
[1745814588259,28.62295843,149.57,149.52,11.24875843]
[1745814588456,4.56295843,149.55,149.49,24.04]
[1745814588757,6.6846,149.55,149.52,4.56295843]
[1745814588956,28.62295843,149.57,149.53,4.56295843]
[1745814589261,24.06,149.57,149.53,4.56295843]
[1745814589662,6.6841,149.56,149.53,4.56295843]
[1745814590059,24.06,149.57,149.54,4.56295843]
[1745814590252,30.744,149.57,149.54,4.56295843]
[1745814590461,24.06,149.57,149.54,4.56295843]
[1745814591157,30.7438,149.57,149.54,4.56295843]
[1745814592860,35.30675843,149.57,149.53,11.24795843]
[1745814594062,30.7438,149.57,149.53,11.24795843]
[1745814596463,30.7438,149.57,149.53,6.685]
[1745814596664,30.7438,149.57,149.53,11.24795843]
[1745814597764,35.30675843,149.57,149.53,6.685]
[1745814597974,24.06,149.57,149.53,11.24795843]